lending/lending_fUSD_20241103
["ID","MTS","AMOUNT","RATE_DAILY","PERIOD"]
[341215875,1730659832792,-200.0,0.00035995,2]
[341215876,1730659832802,-2074.49,0.00036057,2]
[341215877,1730659832812,-567.56,0.00036095,2]
[341215878,1730659832822,-202.55,0.00036161,2]
[341215879,1730659832832,-164.54,0.00036179,2]
[341215880,1730659832841,-393.051,0.00036306,44]
[341215881,1730659832852,-166.35,0.00036926,2]
[341215882,1730659832862,-806.83753524,0.0003743,2]
[341215883,1730659832872,-27817.2934,0.0003748,2]
[341215884,1730659832881,-6340.55671476,0.00037579,2]
[341215885,1730659832893,-374.77521645,0.00037579,2]
[341215888,1730659838344,-291.7635,0.00037579,2]
[341215902,1730659840394,-301.04796879,0.00037579,2]
[341215903,1730659840404,-241.42974495,0.0003758,2]
[341215904,1730659840430,-3007.05015505,0.0003758,2]
[341215905,1730659840440,-500.0,0.00037679,2]
[341215906,1730659840449,-502.40017966,0.00037679,2]
[341215907,1730659840460,-500.0,0.00037679,2]
[341215908,1730659840470,-500.0,0.00037679,2]
[341215909,1730659840480,-500.0,0.00037679,2]
[341215910,1730659840490,-500.0,0.00037679,2]
[341215911,1730659840499,-569.73965297,0.00037679,2]
[341215912,1730659840508,-500.0,0.00037679,2]
[341215913,1730659840518,-500.0,0.00037679,2]
[341215914,1730659840527,-207.58654009,0.00037679,2]
[341215915,1730659840536,-500.0,0.00037679,2]
[341215916,1730659840546,-87.47150243,0.00037679,2]
[341215917,1730659840557,-74.62723509,0.00037679,2]
[341215918,1730659840566,-500.0,0.00037679,2]
[341215919,1730659840576,-644.95655907,0.00037679,2]
[341215920,1730659840586,-223.67,0.00037679,2]
[341215921,1730659840595,-500.0,0.00037679,2]
[341215922,1730659840604,-500.0,0.00037679,2]
[341215923,1730659840613,-500.0,0.00037679,2]
[341215924,1730659840623,-613.31,0.00037679,2]
[341215925,1730659840632,-399.82770227,0.00037689,2]
[341215926,1730659840641,-878.645529,0.000378,2]
[341215927,1730659840650,-300.0,0.00037808,2]
[341215928,1730659840659,-722.8,0.00037808,2]
[341215929,1730659840669,-300.0,0.00037808,2]
[341215930,1730659840678,-864.34,0.00037808,2]
[341215931,1730659840687,-2775.1968,0.00037899,2]
[341215932,1730659840697,-534.96096322,0.00037899,15]
[341215933,1730659840716,-220.0,0.000379,2]
[341215934,1730659840728,-1157.7018,0.000379,2]
[341215935,1730659840738,-33.95531197,0.000379,2]
[341215936,1730659840782,-796.13616604,0.000379,2]
[341215937,1730659840794,-1727.31942199,0.000379,2]
[341215939,1730659840803,-527.11859937,0.000379,2]
[341215941,1730659840813,-161.01786207,0.000379,2]
[341215943,1730659840824,-322.47689028,0.000379,2]
[341215945,1730659840833,-1070.29599908,0.000379,2]
[341215947,1730659840847,-500.0,0.00037953,2]
[341215949,1730659840857,-500.0,0.00037953,2]
[341215951,1730659840868,-373.58,0.00037953,2]
[341215953,1730659840877,-500.0,0.00037953,2]
[341215956,1730659840886,-500.0,0.00037953,2]
[341215957,1730659840896,-342.49,0.00037953,2]
[341215959,1730659840905,-500.0,0.00037953,2]
[341215961,1730659840914,-534.89,0.00037953,2]
[341215963,1730659840924,-218.66069762,0.00037999,15]
[341215965,1730659840933,-500.0,0.00037999,2]
[341215967,1730659840943,-500.0,0.00037999,2]
[341215970,1730659840953,-500.0,0.00037999,2]
[341215972,1730659840963,-500.0,0.00037999,2]
[341215974,1730659840972,-500.0,0.00037999,2]
[341215976,1730659840982,-500.0,0.00037999,2]
[341215978,1730659840992,-500.0,0.00037999,2]
[341215980,1730659841002,-500.0,0.00037999,2]
[341215982,1730659841011,-500.0,0.00037999,2]
[341215984,1730659841021,-500.0,0.00037999,2]
[341215986,1730659841030,-500.0,0.00037999,2]
[341215988,1730659841039,-500.0,0.00037999,2]
[341215990,1730659841049,-500.0,0.00037999,2]
[341215991,1730659841058,-500.0,0.00037999,2]
[341215994,1730659841069,-500.0,0.00037999,2]
[341215995,1730659841078,-500.0,0.00037999,2]
[341215996,1730659841091,-500.0,0.00037999,2]
[341215997,1730659841100,-500.0,0.00037999,2]
[341215998,1730659841109,-197.4,0.00037999,2]
[341215999,1730659841118,-452.03574181,0.00037999,2]
[341216000,1730659841127,-500.0,0.00037999,2]
[341216001,1730659841136,-642.6738,0.00037999,2]
[341216002,1730659841146,-500.0,0.00037999,2]
[341216003,1730659841155,-500.0,0.00037999,2]
[341216004,1730659841165,-500.0,0.00037999,2]
[341216005,1730659841174,-500.0,0.00037999,2]
[341216006,1730659841183,-500.0,0.00037999,2]
[341216007,1730659841193,-500.0,0.00037999,2]
[341216008,1730659841202,-500.0,0.00037999,2]
[341216009,1730659841211,-500.0,0.00037999,2]
[341216010,1730659841221,-11128.67,0.00037999,2]
[341216011,1730659841230,-500.0,0.00037999,2]
[341216012,1730659841241,-500.0,0.00037999,2]
[341216013,1730659841250,-500.0,0.00037999,2]
[341216014,1730659841260,-500.0,0.00037999,2]
[341216015,1730659841270,-567.94,0.00037999,2]
[341216016,1730659841280,-500.0,0.00037999,2]
[341216017,1730659841290,-500.0,0.00037999,2]
[341216018,1730659841300,-500.0,0.00037999,2]
[341216019,1730659841310,-692.15,0.00037999,2]
[341216020,1730659841320,-548.4,0.00037999,2]
[341216021,1730659841329,-886.52,0.00037999,2]
[341216022,1730659841339,-500.0,0.00037999,2]
[341216023,1730659841349,-500.0,0.00037999,2]
[341216024,1730659841359,-500.0,0.00037999,2]
[341216025,1730659841368,-500.0,0.00037999,2]
[341216026,1730659841378,-514.96,0.00037999,2]
[341216027,1730659841387,-500.0,0.00037999,2]
[341216028,1730659841397,-500.0,0.00037999,2]
[341216029,1730659841406,-643.15,0.00037999,2]
[341216030,1730659841416,-500.0,0.00037999,2]
[341216031,1730659841425,-500.0,0.00037999,2]
[341216032,1730659841435,-500.0,0.00037999,2]
[341216033,1730659841445,-157.18,0.00037999,2]
[341216034,1730659841456,-800.12,0.00037999,2]
[341216035,1730659841466,-346.13856941,0.00037999,2]
[341216036,1730659841480,-153.86143059,0.00037999,2]
[341216037,1730659841490,-356.41672227,0.00037999,2]
[341216038,1730659841501,-143.58327773,0.00037999,2]
[341216039,1730659841510,-492.51872234,0.00037999,2]
[341216041,1730659844303,-61.92127766,0.00037999,2]
[341216042,1730659844313,-1424.53,0.00037999,2]
[341216043,1730659844322,-500.0,0.00037999,2]
[341216044,1730659844332,-500.0,0.00037999,2]
[341216045,1730659844342,-248.44872234,0.00037999,2]
[341216046,1730659844433,-251.55127766,0.00037999,2]
[341216047,1730659844444,-500.0,0.00037999,2]
[341216048,1730659844454,-500.0,0.00037999,2]
[341216049,1730659844463,-500.0,0.00037999,2]
[341216050,1730659844474,-500.0,0.00037999,2]
[341216051,1730659844484,-500.0,0.00037999,2]
[341216052,1730659844494,-500.0,0.00037999,2]
[341216053,1730659844503,-197.56,0.00037999,2]
[341216054,1730659844513,-500.0,0.00037999,2]
[341216055,1730659844522,-500.0,0.00037999,2]
[341216056,1730659844532,-202.11614961,0.00037999,2]
[341216057,1730659844541,-473.56901963,0.00037999,2]
[341216058,1730659844550,-500.0,0.00037999,2]
[341216059,1730659844560,-500.0,0.00037999,2]
[341216060,1730659844569,-500.0,0.00037999,2]
[341216061,1730659844579,-286.0,0.00038,5]
[341216062,1730659844593,-6438.13590921,0.00038,3]
[341216063,1730659844604,-303.02565126,0.00038,3]
[341216069,1730659846417,-1698.55,0.00038,3]
[341216070,1730659846443,-4330.59068268,0.00038,3]
[341216071,1730659846453,-20622.02709595,0.00038,3]
[341216072,1730659846649,-16734.74212528,0.00038,3]
[341216073,1730659846660,-1388.350356,0.00038,3]
[341216078,1730660028848,158.45,0.00015342,2]
[341216079,1730660033354,179.8675,0.00015202,2]
[341216080,1730660482922,-150.0,0.00018107,2]
[341216081,1730660495570,-300.0,0.00019725,2]
[341216104,1730661031482,-250.0,0.00021,2]
[341216105,1730661031494,-300.0,0.00023,2]
[341216106,1730661031504,-184.45382692,0.000248,2]
[341216107,1730661031519,-817.055846,0.000248,2]
[341216108,1730661031531,-763.49032708,0.000248,2]
[341216109,1730661031540,-179.8675,0.00026476,2]
[341216110,1730661031550,-160.52,0.00028687,2]
[341216111,1730661031560,-1282.15,0.00028878,2]
[341216112,1730661031569,-124.24642048,0.00028878,2]
[341216113,1730661031581,-26.74357952,0.00028878,2]
[341216114,1730661031590,-343.43925,0.0003,2]
[341216115,1730661031600,-343.43925,0.0003,2]
[341216116,1730661031610,-206.13,0.0003,2]
[341216117,1730661031620,-235.00222129,0.0003078,2]
[341216118,1730661031632,-160.52,0.00033468,2]
[341216119,1730661031642,-2028.68667763,0.00033691,2]
[341216120,1730661031654,-879.18332237,0.00033691,2]
[341216121,1730661031665,-655.51,0.00034042,2]
[341216122,1730661031675,-366.05,0.00035307,2]
[341216123,1730661031685,-4899.51,0.00035561,2]
[341216124,1730661031694,-153.0,0.00035616,2]
[341216125,1730661031703,-153.0,0.00035616,2]
[341216126,1730661031714,-153.0,0.00035616,2]
[341216127,1730661031724,-153.0,0.00035616,2]
[341216128,1730661031735,-153.0,0.00035616,2]
[341216129,1730661031745,-153.0,0.00035616,2]
[341216130,1730661031755,-153.0,0.00035616,2]
[341216131,1730661031765,-734.98363298,0.00035692,2]
[341216132,1730661031777,-328.4348001,0.00035692,2]
[341216133,1730661031788,-976.68107312,0.00035692,2]
[341216134,1730661031800,-7658.8404938,0.00035692,2]
[341216135,1730661031809,-319.04,0.00035741,2]
[341216136,1730661031819,-150.0,0.00035778,7]
[341216137,1730661031828,-250.0,0.00035833,2]
[341216138,1730661031838,-250.0,0.00035852,120]
[341216139,1730661031847,-1000.0,0.00035881,2]
[341216140,1730661031857,-5110.9,0.00035952,2]
[341216141,1730661031867,-160.54,0.00036251,2]
[341216142,1730661031876,-655.51,0.00036306,2]
[341216143,1730661031885,-397.627,0.00036522,45]
[341216144,1730661031895,-155.75,0.00037118,2]
[341216145,1730661031904,-155.75,0.00037147,2]
[341216146,1730661031914,-155.75,0.00037175,2]
[341216147,1730661031924,-155.75,0.00037204,2]
[341216148,1730661031933,-155.75,0.00037233,2]
[341216149,1730661031942,-155.75,0.00037261,2]
[341216150,1730661031952,-155.75,0.0003729,2]
[341216151,1730661031961,-155.75,0.00037318,2]
[341216152,1730661031971,-155.75,0.00037347,2]
[341216153,1730661031980,-155.75,0.00037375,2]
[341216154,1730661031990,-155.75,0.00037404,2]
[341216155,1730661032000,-155.75,0.00037432,2]
[341216156,1730661032009,-155.75,0.00037461,2]
[341216157,1730661032020,-155.75,0.00037489,2]
[341216158,1730661032030,-343.43925,0.0003775,2]
[341216159,1730661032039,-512.68276725,0.00037799,2]
[341216160,1730661032049,-48263.6287,0.00037799,2]
[341216161,1730661032059,-1291.04216193,0.00037799,2]
[341216162,1730661032068,-1291.04216192,0.00037799,2]
[341216163,1730661032078,-1569.2611,0.00037799,2]
[341216164,1730661032087,-204.87412294,0.00037889,2]
[341216165,1730661032096,-309.85034086,0.00037898,2]
[341216166,1730661032105,-543.20057629,0.00037898,2]
[341216167,1730661032115,-500.0,0.00037898,2]
[341216168,1730661032124,-361.33,0.00037898,2]
[341216169,1730661032134,-557.2,0.00037898,2]
[341216170,1730661032143,-500.0,0.00037898,2]
[341216171,1730661032153,-500.0,0.00037898,2]
[341216172,1730661032165,-500.0,0.00037898,2]
[341216173,1730661032175,-500.0,0.00037898,2]
[341216174,1730661032187,-500.0,0.00037898,2]
[341216175,1730661032197,-500.0,0.00037898,2]
[341216176,1730661032207,-500.0,0.00037898,2]
[341216177,1730661032217,-286.15350866,0.00037898,2]
[341216178,1730661032226,-10733.71,0.00037898,2]
[341216179,1730661032236,-849.58,0.00037898,2]
[341216180,1730661032246,-500.0,0.00037898,2]
[341216181,1730661032255,-500.0,0.00037898,2]
[341216182,1730661032266,-500.0,0.00037898,2]
[341216183,1730661032276,-1365.18,0.00037898,2]
[341216184,1730661032285,-500.0,0.00037898,2]
[341216185,1730661032295,-500.0,0.00037898,2]
[341216186,1730661032304,-153.06248833,0.00037899,15]
[341216187,1730661032314,-2172.4569,0.00037899,2]
[341216188,1730661032323,-500.0,0.00037899,2]
[341216189,1730661032334,-500.0,0.00037899,2]
[341216190,1730661032343,-266.48727476,0.00037899,2]
[341216191,1730661032353,-440.040139,0.00037899,2]
[341216192,1730661032363,-507.81623494,0.00037899,2]
[341216193,1730661032373,-535.14440433,0.00037899,2]
[341216194,1730661032383,-383.66,0.00037899,2]
[341216195,1730661032392,-500.0,0.00037899,2]
[341216196,1730661032401,-500.0,0.00037899,2]
[341216197,1730661032411,-452.04,0.00037899,2]
[341216198,1730661032420,-500.0,0.00037899,2]
[341216199,1730661032430,-500.0,0.00037899,2]
[341216200,1730661032439,-500.0,0.00037899,2]
[341216201,1730661032449,-619.33514407,0.00037899,2]
[341216202,1730661032459,-500.0,0.00037899,2]
[341216203,1730661032469,-267.65,0.00037899,2]
[341216204,1730661032478,-500.0,0.00037899,2]
[341216205,1730661032488,-548.44416058,0.00037899,2]
[341216206,1730661032498,-290.42746391,0.00037899,2]
[341216207,1730661032508,-663.32,0.00037899,2]
[341216208,1730661032520,-501.26,0.00037899,2]
[341216209,1730661032529,-500.0,0.00037899,2]
[341216210,1730661032540,-500.0,0.00037899,2]
[341216211,1730661032549,-500.0,0.00037899,2]
[341216212,1730661032559,-766.78,0.00037899,2]
[341216213,1730661032569,-298.52,0.00037899,2]
[341216214,1730661032578,-500.0,0.00037899,2]
[341216215,1730661032587,-500.0,0.00037899,2]
[341216216,1730661032597,-500.0,0.00037899,2]
[341216217,1730661032605,-500.0,0.00037899,2]
[341216218,1730661032614,-935.76575735,0.00037899,2]
[341216219,1730661032624,-308.0,0.00037899,5]
[341216220,1730661032634,-9577.72668236,0.00037899,3]
[341216221,1730661032644,-157302.70683672,0.00037899,3]
[341216222,1730661032658,-4915.85139389,0.00037899,3]
[341216223,1730661032669,-332.17124173,0.00037899,3]
[341216224,1730661032681,-28080.28613759,0.00037899,3]
[341216225,1730661032692,-397.79058894,0.00037899,3]
[341216226,1730661032704,-495.72833055,0.00037899,3]
[341216229,1730661037565,-991.61546949,0.00037899,3]
[341216230,1730661037577,-1380.94,0.00037899,3]
[341216231,1730661037863,-3035.35101681,0.00037899,3]
[341216232,1730661037876,-3353.94450525,0.00037899,3]
[341216233,1730661039710,-159.52,0.00037459,2]
[341216234,1730661039720,-161.01786207,0.00037799,2]
[341216235,1730661039729,-500.0,0.00037898,2]
[341216236,1730661039739,-134.40663927,0.00037899,3]
[341216237,1730661039750,-1014.03984,0.00037899,3]
[341216238,1730661039761,-1934.86009001,0.00037899,3]
[341216239,1730661039772,-972.46,0.00037899,3]
[341216240,1730661039783,-3275.77250001,0.00037899,3]
[341216241,1730661039795,-4843.80122508,0.00037899,3]
[341216242,1730661039806,-411.78939445,0.00037899,3]
[341216243,1730661039818,-311252.32462149,0.00037899,3]
[341216245,1730661042134,155.89,0.00015342,2]
[341216254,1730661042557,-155.89,0.00025479,2]
[341216255,1730661042567,-155.89,0.00035616,2]
[341216256,1730661042576,-426.47,0.00037889,10]
[341216257,1730661042586,-514.81379499,0.00037899,3]
[341216258,1730661042601,-7644.32481056,0.00037899,3]
[341216268,1730661045711,-159.722,0.0003,2]
[341216269,1730661045721,-159.722,0.0003,2]
[341216270,1730661045731,-16545.4100884,0.00037899,3]
[341216296,1730662169605,156.8,0.00015342,2]
[341216298,1730662173747,166.6545,0.00015151,2]
[341216322,1730662231684,-300.0,0.00019725,2]
[341216324,1730662231693,-137.38403407,0.00020765,2]
[341216325,1730662231719,-761.785,0.00020765,2]
[341216326,1730662231848,-1002.34808,0.00020765,2]
[341216327,1730662231979,-1540.14980589,0.00020765,2]
[341216328,1730662232017,-983.12938104,0.00020765,2]
[341216329,1730662232026,-3831.02705961,0.0002087,2]
[341216332,1730662237765,-1694.1979227,0.00021076,2]
[341216334,1730662237774,-341.0,0.00021484,2]
[341216336,1730662237783,-1332.0,0.00022107,2]
[341216337,1730662237793,-298.82059135,0.00022108,2]
[341216338,1730662237804,-2437.9,0.00022108,2]
[341216339,1730662238134,-5241.39293239,0.00022108,2]
[341216340,1730662238146,-4111.63647626,0.00022108,2]
[341216341,1730662238155,-161.04,0.0002606,2]
[341216342,1730662238164,-9531.12352374,0.0002606,2]
[341216344,1730662239868,-380.2519983,0.0002606,2]
[341216345,1730662240057,-88.61447796,0.0002606,2]
[341216346,1730662240066,-166.6545,0.00026436,2]
[341216347,1730662240076,-1513.75976204,0.000271,2]
[341216348,1730662240087,-213.24023796,0.000271,2]
[341216350,1730662240096,-379.0,0.000271,2]
[341216351,1730662240105,-473.8,0.000271,2]
[341216352,1730662240114,-54.28718174,0.00027702,2]
[341216353,1730662240125,-2731.063617,0.00027702,2]
[341216354,1730662240136,-517.682,0.00027702,2]
[341216362,1730662243813,-466.66423712,0.00027702,2]
[341216363,1730662243854,-702.91,0.00027702,2]
[341216364,1730662243866,-2274.01967577,0.00027702,2]
[341216365,1730662243875,-173.62,0.00027764,2]
[341216366,1730662243884,-2198.69,0.00027764,2]
[341216367,1730662243894,-402.41,0.0002919,2]
[341216368,1730662243904,-831.9,0.0002919,2]
[341216369,1730662243913,-789.13,0.0002919,2]
[341216370,1730662243922,-719.253,0.0003,2]
[341216371,1730662243931,-719.253,0.0003,2]
[341216372,1730662243941,-499.07,0.00030459,2]
[341216373,1730662243950,-173.62,0.00030541,2]
[341216374,1730662243959,-406.46554274,0.00030669,2]
[341216375,1730662243968,-903.32843612,0.0003067,2]
[341216376,1730662243978,-637.21475884,0.0003068,15]
[341216377,1730662243987,-23554.02025494,0.0003077,2]
[341216378,1730662244002,-89199.39170053,0.0003077,2]
[341216379,1730662244011,-1498.41,0.0003078,2]
[341216380,1730662244020,-169.65,0.0003078,2]
[341216381,1730662244030,-832.69,0.00031496,2]
[341216382,1730662244039,-637.21475877,0.00032148,15]
[341216383,1730662244048,-150.0,0.00032184,7]
[341216384,1730662244058,-10138.23,0.00032567,2]
[341216385,1730662244068,-541.39,0.00033106,2]
[341216386,1730662244078,-8643.23,0.00033166,2]
[341216387,1730662244088,-173.62,0.00033317,2]
[341216388,1730662244098,-250.0,0.00033357,2]
[341216389,1730662244108,-637.21475877,0.00033616,15]
[341216390,1730662244118,-832.69,0.0003376,2]
[341216391,1730662244127,-170.06,0.00034019,2]
[341216392,1730662244137,-160.89,0.0003408,2]
[341216393,1730662244147,-453.92,0.0003439,2]
[341216394,1730662244156,-250.0,0.0003453,120]
[341216395,1730662244166,-800.0,0.00034681,2]
[341216396,1730662244176,-300.0,0.00035,2]
[341216397,1730662244186,-637.21475877,0.00035084,15]
[341216398,1730662244196,-153.0,0.00035616,2]
[341216399,1730662244206,-153.0,0.00035616,2]
[341216400,1730662244216,-153.0,0.00035616,2]
[341216401,1730662244225,-153.0,0.00035616,2]
[341216402,1730662244234,-153.0,0.00035616,2]
[341216403,1730662244246,-153.0,0.00035616,2]
[341216405,1730662244255,-153.0,0.00035616,2]
[341216407,1730662244264,-200.0,0.00035673,2]
[341216409,1730662244274,-166.6,0.00035685,2]
[341216410,1730662244283,-832.69,0.00036024,2]
[341216412,1730662244292,-173.62,0.00036094,2]
[341216414,1730662244301,-318.102,0.00036303,44]
[341216416,1730662244310,-637.21475877,0.00036552,15]
[341216417,1730662244319,-169.37,0.00036708,2]
[341216419,1730662244328,-168.4,0.00036877,2]
[341216421,1730662244338,-152.24,0.00037054,120]
[341216422,1730662244347,-5909.0,0.00037412,2]
[341216423,1730662244357,-3477.939,0.00037412,2]
[341216424,1730662244366,-169.387,0.00037412,2]
[341216425,1730662244376,-150.0,0.0003755,2]
[341216426,1730662244385,-499.20154516,0.00037588,2]
[341216427,1730662244395,-150.0,0.00037604,2]
[341216428,1730662244405,-299.42827256,0.00037662,2]
[341216429,1730662244414,-273.16549726,0.0003767,2]
[341216430,1730662244424,-500.0,0.00037673,2]
[341216431,1730662244434,-483.11813187,0.00037673,5]
[341216432,1730662244444,-502.04229203,0.00037673,5]
[341216433,1730662244454,-396.84,0.00037679,2]
[341216434,1730662244464,-413460.06216026,0.0003768,2]
[341216435,1730662244475,-300.0,0.00037688,10]
[341216436,1730662244484,-500.0,0.00037688,2]
[341216437,1730662244496,-625.68,0.00037688,2]
[341216438,1730662244505,-560.39,0.00037688,2]
[341216439,1730662244515,-581.51147322,0.00037688,2]
[341216440,1730662244524,-500.0,0.00037688,2]
[341216441,1730662244534,-290.50992839,0.00037688,2]
[341216442,1730662244543,-500.0,0.00037688,2]
[341216443,1730662244553,-500.0,0.00037688,2]
[341216444,1730662244565,-500.0,0.00037688,2]
[341216445,1730662244576,-500.0,0.00037688,2]
[341216446,1730662244585,-175.23362653,0.00037688,2]
[341216447,1730662244594,-257.82,0.00037688,2]
[341216448,1730662244605,-10286.47,0.00037688,2]
[341216449,1730662244614,-500.0,0.00037688,2]
[341216450,1730662244624,-814.19,0.00037688,2]
[341216451,1730662244634,-500.0,0.00037688,2]
[341216452,1730662244644,-259.39,0.00037688,2]
[341216453,1730662244654,-635.68,0.00037688,2]
[341216454,1730662244663,-608.82,0.00037688,2]
[341216455,1730662244673,-500.0,0.00037688,2]
[341216456,1730662244682,-500.0,0.00037688,2]
[341216457,1730662244692,-500.0,0.00037688,2]
[341216458,1730662244702,-1308.3,0.00037688,2]
[341216459,1730662244711,-500.0,0.00037688,2]
[341216460,1730662244722,-500.0,0.00037688,2]
[341216461,1730662244732,-734.83,0.00037688,2]
[341216462,1730662244743,-500.0,0.00037688,2]
[341216463,1730662244752,-500.0,0.00037688,2]
[341216464,1730662244762,-500.0,0.00037688,2]
[341216465,1730662244771,-500.0,0.00037688,2]
[341216466,1730662244781,-7183.29501177,0.00037688,3]
[341216467,1730662244791,-449108.91421049,0.00037688,3]
[341216468,1730662244803,-282.472,0.00037688,3]
[341216469,1730662244814,-20321.50658134,0.00037688,3]
[341216482,1730662245793,-1661.21172901,0.00037688,3]
[341216483,1730662245826,-10257.4082922,0.00037688,3]
[341216554,1730663192399,158.45,0.00015342,2]
[341216623,1730663432015,-170.07804724,0.00028039,2]
[341216624,1730663432025,-6182.00579997,0.00028239,2]
[341216625,1730663432038,-173.62,0.00028339,2]
[341216626,1730663432047,-824.91388,0.0002985,2]
[341216627,1730663432058,-164.11725,0.0003,2]
[341216628,1730663432071,-4467.8025,0.00030368,2]
[341216629,1730663432084,-50000.0,0.00030368,2]
[341216630,1730663432095,-999.99,0.00030368,2]
[341216631,1730663432106,-500.0,0.00030499,2]
[341216632,1730663432116,-500.0,0.00030499,2]
[341216633,1730663432128,-500.0,0.00030499,2]
[341216634,1730663432140,-500.0,0.00030499,2]
[341216635,1730663432151,-153.77088619,0.00030499,2]
[341216636,1730663432169,-346.22911381,0.00030499,2]
[341216637,1730663432179,-500.0,0.00030499,2]
[341216638,1730663432189,-506.83129263,0.00030499,2]
[341216639,1730663432199,-500.0,0.00030499,2]
[341216640,1730663432209,-500.0,0.00030499,2]
[341216641,1730663432219,-500.0,0.00030499,2]
[341216643,1730663432229,-500.0,0.00030499,2]
[341216645,1730663432238,-544.23935939,0.00030499,2]
[341216646,1730663432248,-500.0,0.00030499,2]
[341216647,1730663432258,-2556.69,0.000305,2]
[341216648,1730663432267,-833.38,0.000305,2]
[341216649,1730663432278,-2616.08,0.000305,2]
[341216650,1730663432288,-160.08359384,0.000305,5]
[341216651,1730663432298,-9999.99,0.000305,2]
[341216652,1730663432308,-260.5300956,0.000305,5]
[341216653,1730663432318,-500.0,0.000305,2]
[341216654,1730663432329,-150.99,0.00030568,2]
[341216655,1730663432339,-258.24,0.00030568,2]
[341216656,1730663432349,-1000.0,0.0003187,2]
[341216657,1730663432360,-707.78,0.00033946,2]
[341216658,1730663432370,-250.0,0.00034004,2]
[341216659,1730663432381,-150.0,0.00034041,7]
[341216660,1730663432390,-1500.0,0.00034375,2]
[341216661,1730663432401,-168.41,0.00034485,2]
[341216662,1730663432412,-194.87,0.00034499,2]
[341216663,1730663432423,-513.53,0.00034522,2]
[341216664,1730663432433,-152.24,0.00034871,120]
[341216665,1730663432444,-159.33,0.00035517,2]
[341216666,1730663432455,-1000.0,0.00035517,2]
[341216667,1730663432465,-166.35,0.00035798,2]
[341216668,1730663432476,-707.78,0.0003621,2]
[341216669,1730663432487,-254.481,0.00036303,44]
[341216670,1730663432497,-168.41,0.00036784,2]
[341216671,1730663432507,-424.52,0.00036849,2]
[341216672,1730663432517,-20075.0,0.000374,2]
[341216673,1730663432528,-2911.0546,0.00037489,2]
[341216674,1730663432540,-301.048,0.00037489,2]
[341216675,1730663432550,-1000.0,0.00037489,2]
[341216676,1730663432560,-1670.6633,0.00037489,2]
[341216677,1730663432572,-318.60737943,0.00037518,15]
[341216678,1730663432583,-500.46528927,0.00037573,5]
[341216679,1730663432593,-636.40688968,0.00037588,2]
[341216680,1730663432603,-333.71,0.00037588,2]
[341216681,1730663432613,-248.0,0.00037588,2]
[341216682,1730663432624,-500.0,0.00037588,2]
[341216683,1730663432634,-9857.87,0.00037588,2]
[341216684,1730663432645,-500.0,0.00037588,2]
[341216685,1730663432655,-780.26,0.00037588,2]
[341216686,1730663432665,-391.13,0.00037588,2]
[341216687,1730663432675,-1253.78,0.00037588,2]
[341216688,1730663432686,-609.19,0.00037588,2]
[341216689,1730663432697,-500.0,0.00037588,2]
[341216690,1730663432707,-500.0,0.00037588,2]
[341216691,1730663432718,-500.0,0.00037588,2]
[341216692,1730663432729,-500.0,0.00037588,2]
[341216693,1730663432740,-704.21,0.00037588,2]